fUST/lending_fUST_20250205
["ID","MTS","AMOUNT","RATE_DAILY","PERIOD"]
[351706460,1738759840247,-500.0,0.00015581,2]
[351706462,1738759840257,-500.0,0.00015581,2]
[351706464,1738759840266,-500.0,0.00015581,2]
[351706466,1738759840276,-500.0,0.00015581,2]
[351706468,1738759840285,-500.0,0.00015581,2]
[351706470,1738759840294,-500.0,0.00015581,2]
[351706472,1738759840304,-500.0,0.00015581,2]
[351706474,1738759840313,-500.0,0.00015581,2]
[351706476,1738759840322,-500.0,0.00015581,2]
[351706478,1738759840332,-500.0,0.00015581,2]
[351706480,1738759840341,-500.0,0.00015581,2]
[351706482,1738759840350,-500.0,0.00015581,2]
[351706484,1738759840359,-500.0,0.00015581,2]
[351706486,1738759840368,-500.0,0.00015581,2]
[351706488,1738759840377,-500.0,0.00015581,2]
[351706490,1738759840386,-500.0,0.00015581,2]
[351706492,1738759840396,-500.0,0.00015581,2]
[351706494,1738759840405,-500.0,0.00015581,2]
[351706496,1738759840413,-500.0,0.00015581,2]
[351706498,1738759840423,-500.0,0.00015581,2]
[351706500,1738759840431,-500.0,0.00015581,2]
[351706502,1738759840440,-500.0,0.00015581,2]
[351706504,1738759840449,-500.0,0.00015581,2]
[351706506,1738759840459,-250.0,0.00015581,2]
[351706508,1738759840468,-500.0,0.00015581,2]
[351706510,1738759840477,-500.0,0.00015581,2]
[351706512,1738759840486,-500.0,0.00015581,2]
[351706514,1738759840495,-500.0,0.00015581,2]
[351706515,1738759840504,-500.0,0.00015581,2]
[351706516,1738759840513,-500.0,0.00015581,2]
[351706517,1738759840522,-500.0,0.00015581,2]
[351706518,1738759840530,-500.0,0.00015581,2]
[351706519,1738759840539,-500.0,0.00015581,2]
[351706520,1738759840548,-500.0,0.00015581,2]
[351706521,1738759840556,-500.0,0.00015581,2]
[351706522,1738759840568,-500.0,0.00015581,2]
[351706523,1738759840578,-500.0,0.00015581,2]
[351706524,1738759840587,-500.0,0.00015581,2]
[351706525,1738759840595,-500.0,0.00015581,2]
[351706526,1738759840604,-500.0,0.00015581,2]
[351706527,1738759840614,-500.0,0.00015581,2]
[351706528,1738759840622,-669.31,0.00015582,2]
[351706529,1738759840631,-1294.8,0.00015582,2]
[351706530,1738759840641,-500.0,0.00015582,2]
[351706531,1738759840650,-500.0,0.00015582,2]
[351706532,1738759840658,-500.0,0.00015582,2]
[351706534,1738759840667,-264.85771014,0.00015582,2]
[351706536,1738759840676,-653.11,0.00015582,2]
[351706538,1738759840685,-500.0,0.00015582,2]
[351706539,1738759840694,-3955.78,0.00015582,2]
[351706541,1738759840703,-2399.52,0.00015582,2]
[351706543,1738759840712,-500.0,0.00015582,2]
[351706545,1738759840722,-534.75,0.00015582,2]
[351706548,1738759840732,-582.68,0.00015582,2]
[351706550,1738759840741,-550.60761114,0.00015582,2]
[351706552,1738759840751,-1786.83,0.00015582,2]
[351706554,1738759840760,-500.0,0.00015582,2]
[351706556,1738759840769,-1672.95,0.00015582,2]
[351706558,1738759840779,-1158.96,0.00015582,2]
[351706560,1738759840788,-500.0,0.00015582,2]
[351706562,1738759840797,-500.0,0.00015582,2]
[351706563,1738759840807,-500.0,0.00015582,2]
[351706565,1738759840816,-2884.11,0.00015582,2]
[351706567,1738759840826,-500.0,0.00015582,2]
[351706569,1738759840835,-1433.19,0.00015582,2]
[351706571,1738759840844,-500.0,0.00015582,2]
[351706573,1738759840855,-500.0,0.00015582,2]
[351706575,1738759840868,-500.0,0.00015582,2]
[351706577,1738759840877,-500.0,0.00015582,2]
[351706579,1738759840887,-755.49,0.00015582,2]
[351706581,1738759840896,-500.0,0.00015582,2]
[351706583,1738759840906,-1930.55,0.00015582,2]
[351706585,1738759840916,-2047.24,0.00015582,2]
[351706587,1738759840926,-500.0,0.00015582,2]
[351706589,1738759840935,-500.0,0.00015582,2]
[351706591,1738759840945,-569.39,0.00015582,2]
[351706593,1738759840955,-1851.32,0.00015582,2]
[351706595,1738759840964,-500.0,0.00015582,2]
[351706597,1738759840973,-500.0,0.00015582,2]
[351706599,1738759840982,-500.0,0.00015582,2]
[351706601,1738759840991,-500.0,0.00015582,2]
[351706603,1738759841001,-500.0,0.00015582,2]
[351706605,1738759841010,-500.0,0.00015582,2]
[351706607,1738759841021,-500.0,0.00015582,2]
[351706609,1738759841030,-9006.53,0.00015582,2]
[351706611,1738759841040,-797.3,0.00015582,2]
[351706613,1738759841049,-3344.47,0.00015582,2]
[351706615,1738759841058,-500.0,0.00015582,2]
[351706617,1738759841067,-500.0,0.00015582,2]
[351706619,1738759841076,-1329.85,0.00015582,2]
[351706621,1738759841086,-500.0,0.00015582,2]
[351706623,1738759841095,-1777.27,0.00015582,2]
[351706625,1738759841104,-638.5,0.00015582,2]
[351706627,1738759841114,-2993.2,0.00015582,2]
[351706629,1738759841123,-712.92,0.00015582,2]
[351706631,1738759841133,-2831.6,0.00015582,2]
[351706633,1738759841142,-500.0,0.00015582,2]
[351706635,1738759841152,-1152.53,0.00015582,2]
[351706637,1738759841161,-925.23,0.00015582,2]
[351706639,1738759841170,-530.71,0.00015582,2]
[351706642,1738759841180,-773.7,0.00015582,2]
[351706644,1738759841189,-500.0,0.00015582,2]
[351706646,1738759841198,-3782.25,0.00015582,2]
[351706648,1738759841207,-1964.54270626,0.00015582,2]
[351706740,1738759843332,-1546.78600054,0.0001558,2]
[351706741,1738759843483,-3061.52399946,0.0001558,2]
[351706742,1738759843494,-1849.39631999,0.00015581,2]
[351706743,1738759843515,-1775.25368001,0.00015581,2]
[351706744,1738759843524,-493.87873503,0.00015581,2]
[351706745,1738759843534,-5594.25664331,0.00015582,2]
[351706746,1738759843544,-513.105,0.00015582,2]
[351706747,1738759843556,-1737.44862577,0.00015582,2]
[351706748,1738759843575,-293.61899997,0.00015582,2]
[351706749,1738759843617,-714.47439226,0.00015582,2]
[351707050,1738759846563,-5517.53944332,0.00015582,2]
[351707057,1738759846616,-9949.31818749,0.00015582,2]
[351707756,1738759854006,3227.15805168,0.00015,2]
[351709469,1738759889851,162.017,0.0001491,2]
[351709471,1738759970269,325.7598657,0.0001453,2]
[351709472,1738760007777,2025.564711,0.00014529,2]
[351709473,1738760010437,250.0,0.00014529,2]
[351709474,1738760056837,260.9062026,0.0001453,2]
[351709475,1738760134435,2465.0,0.00020423,120]
[351709477,1738760281048,12231.0669554,0.00014506,2]
[351709478,1738760387323,640.15722,0.00014482,2]
[351709479,1738760420854,290.616281,0.00013973,2]
[351709481,1738760695232,260.403763,0.00014431,2]
[351709482,1738760872240,1212.19859573,0.00015001,2]
[351709534,1738761031996,-1212.19859572,0.00015023,2]
[351709536,1738761032006,-502.0661274,0.00015044,2]
[351709542,1738761032053,-710.13246832,0.00015044,2]
[351709544,1738761032062,-166.0,0.00015068,2]
[351709546,1738761032071,-300.0,0.00015267,2]
[351709548,1738761032081,-9775.27679315,0.00015268,2]
[351709550,1738761032090,-465.00233693,0.00015362,2]
[351709552,1738761032099,-489.54194051,0.0001538,2]
[351709554,1738761032109,-2280.59773606,0.00015381,2]
[351709556,1738761032119,-1716.17869167,0.000154,2]
[351709558,1738761032129,-489.54194049,0.00015405,2]
[351709560,1738761032138,-489.54194049,0.00015429,2]
[351709562,1738761032147,-489.54194049,0.00015454,2]
[351709564,1738761032156,-165.65,0.00015469,2]
[351709565,1738761032165,-165.65,0.0001547,2]
[351709568,1738761032175,-489.54194049,0.00015478,2]
[351709570,1738761032184,-500.0,0.00015479,2]
[351709571,1738761032194,-7106.65,0.00015479,2]
[351709573,1738761032203,-2943.26,0.00015479,2]
[351709575,1738761032213,-1337.96,0.00015479,2]
[351709577,1738761032222,-1489.5,0.00015479,2]
[351709579,1738761032231,-535.31,0.00015479,2]
[351709580,1738761032240,-500.0,0.00015479,2]
[351709581,1738761032249,-4452.13,0.0001548,2]
[351709582,1738761032258,-956.36,0.0001548,2]
[351709583,1738761032267,-500.0,0.0001548,2]
[351709584,1738761032276,-990.99,0.0001548,2]
[351709585,1738761032286,-500.0,0.0001548,2]
[351709586,1738761032295,-12317.63,0.0001548,2]
[351709587,1738761032304,-1080.16,0.0001548,2]
[351709588,1738761032314,-582.54,0.0001548,2]
[351709589,1738761032323,-501.31920245,0.0001548,2]
[351709590,1738761032332,-20211.34,0.0001548,2]
[351709591,1738761032341,-691.11,0.0001548,2]
[351709592,1738761032351,-500.0,0.0001548,2]
[351709593,1738761032361,-500.0,0.0001548,2]
[351709594,1738761032371,-500.0,0.0001548,2]
[351709595,1738761032380,-8058.0,0.0001548,2]
[351709596,1738761032389,-9731.73,0.0001548,2]
[351709597,1738761032399,-4225.15,0.0001548,2]
[351709598,1738761032408,-500.0,0.0001548,2]
[351709599,1738761032418,-524.21,0.0001548,2]
[351709600,1738761032427,-3251.5,0.0001548,2]
[351709601,1738761032436,-1421.35,0.0001548,2]
[351709602,1738761032445,-682.58,0.0001548,2]
[351709603,1738761032453,-500.0,0.0001548,2]
[351709604,1738761032624,-1351.51,0.0001548,2]
[351709605,1738761032635,-500.0,0.0001548,2]
[351709606,1738761032646,-500.0,0.0001548,2]
[351709607,1738761032656,-1107.43,0.0001548,2]
[351709608,1738761032666,-3368.74,0.0001548,2]
[351709609,1738761032675,-500.0,0.0001548,2]
[351709610,1738761032685,-3116.67695822,0.0001548,2]
[351709636,1738761037772,-4266.62,0.00015479,2]
[351709637,1738761037782,-404.86304178,0.0001548,2]
[351709638,1738761037791,-14106.84,0.0001548,2]
[351709639,1738761037801,-529.25402387,0.00015573,2]
[351709640,1738761037810,-500.0,0.00015573,2]
[351709641,1738761037819,-506.43870513,0.00015573,2]
[351709642,1738761037829,-500.0,0.00015573,2]
[351709643,1738761037838,-500.0,0.00015573,2]
[351709644,1738761037847,-518.13745568,0.00015573,2]
[351709645,1738761037857,-500.0,0.00015577,2]
[351709646,1738761037866,-500.0,0.00015577,2]
[351709647,1738761037875,-500.0,0.00015577,2]
[351709648,1738761037885,-500.0,0.00015577,2]
[351709649,1738761037895,-500.0,0.00015577,2]
[351709650,1738761037905,-500.0,0.00015577,2]
[351709651,1738761037915,-500.0,0.00015577,2]
[351709652,1738761037925,-500.0,0.00015577,2]
[351709653,1738761037935,-500.0,0.00015577,2]
[351709654,1738761037944,-3790.96,0.00015577,2]
[351709655,1738761037954,-234.33379511,0.00015577,2]
[351709656,1738761037966,-500.0,0.00015577,2]
[351709657,1738761037979,-500.0,0.00015577,2]
[351709658,1738761037989,-533.3,0.00015577,2]
[351709659,1738761037999,-500.0,0.00015577,2]
[351709661,1738761038008,-604.19,0.00015577,2]
[351709663,1738761038018,-500.0,0.00015577,2]
[351709664,1738761038028,-500.0,0.00015577,2]
[351709665,1738761038037,-526.37842923,0.00015577,2]
[351709666,1738761038048,-500.0,0.00015577,2]
[351709667,1738761038059,-500.0,0.00015577,2]
[351709668,1738761038068,-1131.5,0.00015577,2]
[351709669,1738761038078,-500.0,0.00015577,2]
[351709670,1738761038088,-500.0,0.00015577,2]
[351709671,1738761038097,-500.0,0.00015577,2]
[351709672,1738761038107,-500.0,0.00015577,2]
[351709673,1738761038117,-500.0,0.00015577,2]
[351709674,1738761038126,-568.47,0.00015577,2]
[351709675,1738761038136,-500.0,0.00015577,2]
[351709676,1738761038147,-500.0,0.00015577,2]
[351709677,1738761038157,-500.0,0.00015577,2]
[351709678,1738761038168,-500.0,0.00015577,2]
[351709679,1738761038178,-500.0,0.00015577,2]
[351709680,1738761038188,-500.0,0.00015577,2]
[351709681,1738761038199,-500.0,0.00015577,2]
[351709682,1738761038208,-500.0,0.00015577,2]
[351709683,1738761038219,-1329.99,0.00015577,2]
[351709684,1738761038229,-724.01,0.00015577,2]
[351709685,1738761038238,-820.1,0.00015577,2]
[351709686,1738761038248,-500.0,0.00015577,2]
[351709687,1738761038258,-500.0,0.00015577,2]
[351709688,1738761038268,-500.0,0.00015577,2]
[351709689,1738761038279,-500.0,0.00015577,2]
[351709690,1738761038289,-1986.25,0.00015577,2]
[351709691,1738761038301,-500.0,0.00015577,2]
[351709692,1738761038311,-1795.01,0.00015577,2]
[351709693,1738761038323,-500.0,0.00015577,2]
[351709694,1738761038335,-931.78,0.00015577,2]
[351709695,1738761038348,-502.9329759,0.00015577,2]
[351709696,1738761038360,-500.0,0.00015577,2]
[351709697,1738761038369,-1724.05,0.00015577,2]
[351709698,1738761038378,-500.0,0.00015577,2]
[351709699,1738761038388,-500.0,0.00015577,2]
[351709700,1738761038397,-500.0,0.00015577,2]
[351709701,1738761038407,-500.0,0.00015577,2]
[351709702,1738761038416,-179.58268427,0.00015577,2]
[351709703,1738761038426,-500.0,0.00015577,2]
[351709704,1738761038435,-500.0,0.00015577,2]
[351709705,1738761038445,-308.21320032,0.00015577,2]
[351709706,1738761038455,-500.0,0.00015577,2]
[351709707,1738761038464,-357.78886464,0.00015577,2]
[351709708,1738761038474,-500.0,0.00015577,2]
[351709709,1738761038484,-500.0,0.00015577,2]
[351709710,1738761038493,-500.0,0.00015577,2]
[351709711,1738761038503,-596.72846328,0.00015577,2]
[351709712,1738761038512,-500.0,0.00015577,2]
[351709713,1738761038521,-500.0,0.00015577,2]
[351709714,1738761038531,-500.0,0.00015577,2]
[351709715,1738761038540,-1337.64,0.00015577,2]
[351709716,1738761038549,-523.93,0.00015577,2]
[351709717,1738761038559,-500.0,0.00015577,2]
[351709718,1738761038568,-741.47,0.00015577,2]
[351709719,1738761038578,-500.0,0.00015577,2]
[351709720,1738761038588,-500.0,0.00015577,2]
[351709721,1738761038597,-500.0,0.00015577,2]
[351709722,1738761038607,-1209.72,0.00015577,2]
[351709723,1738761038623,-500.0,0.00015577,2]
[351709724,1738761038632,-2306.51,0.00015577,2]
[351709725,1738761038641,-500.0,0.00015577,2]
[351709726,1738761038651,-500.0,0.00015577,2]
[351709727,1738761038664,-500.0,0.00015577,2]
[351709728,1738761038676,-500.0,0.00015577,2]
[351709729,1738761038693,-436.03128439,0.00015577,2]
[351709730,1738761038704,-500.0,0.00015577,2]
[351709731,1738761038714,-500.0,0.00015577,2]
[351709732,1738761038726,-500.0,0.00015577,2]
[351709733,1738761038737,-500.0,0.00015577,2]
[351709734,1738761038747,-500.0,0.00015577,2]
[351709735,1738761038757,-500.0,0.00015577,2]
[351709736,1738761038766,-500.0,0.00015577,2]
[351709737,1738761038776,-507.07363356,0.00015577,2]
[351709738,1738761038786,-500.0,0.00015577,2]
[351709739,1738761038795,-500.0,0.00015577,2]
[351709740,1738761038805,-500.0,0.00015577,2]
[351709741,1738761038815,-500.0,0.00015577,2]
[351709742,1738761038824,-500.0,0.00015577,2]
[351709743,1738761038833,-500.0,0.00015577,2]
[351709744,1738761038843,-500.0,0.00015577,2]
[351709745,1738761038852,-1571.89,0.00015577,2]
[351709746,1738761038863,-500.0,0.00015577,2]
[351709747,1738761038873,-520.36,0.00015577,2]
[351709748,1738761038883,-761.45,0.00015577,2]
[351709749,1738761038892,-500.0,0.00015577,2]
[351709750,1738761038902,-500.0,0.00015577,2]
[351709751,1738761038912,-500.0,0.00015577,2]
[351709752,1738761038922,-500.0,0.00015577,2]
[351709753,1738761038932,-510.23505452,0.00015577,2]
[351709754,1738761038942,-500.0,0.00015577,2]
[351709755,1738761038952,-1207.37,0.00015577,2]
[351709756,1738761038962,-500.0,0.00015577,2]
[351709757,1738761038975,-500.0,0.00015577,2]
[351709758,1738761038985,-500.0,0.00015577,2]
[351709759,1738761038995,-500.0,0.00015577,2]
[351709760,1738761039004,-762.13,0.00015577,2]
[351709761,1738761039015,-500.0,0.00015577,2]
[351709762,1738761039024,-519.82839717,0.00015577,2]
[351709763,1738761039033,-500.0,0.00015577,2]
[351709764,1738761039043,-612.77934383,0.00015577,2]
[351709765,1738761039054,-114.81852418,0.00015577,2]
[351709766,1738761039069,-385.18147582,0.00015577,2]
[351709767,1738761039079,-500.0,0.00015577,2]
[351709768,1738761039088,-500.0,0.00015577,2]
[351709769,1738761039098,-500.0,0.00015577,2]
[351709770,1738761039107,-500.0,0.00015577,2]
[351709771,1738761039117,-500.0,0.00015577,2]
[351709772,1738761039127,-500.0,0.00015577,2]
[351709773,1738761039137,-500.0,0.00015577,2]
[351709774,1738761039147,-500.0,0.00015577,2]
[351709775,1738761039157,-1427.15,0.00015577,2]
[351709776,1738761039167,-500.0,0.00015577,2]
[351709777,1738761039176,-1054.95,0.00015578,2]
[351709778,1738761039186,-641.42,0.00015578,2]
[351709779,1738761039195,-500.0,0.00015578,2]
[351709780,1738761039206,-500.0,0.00015578,2]
[351709781,1738761039217,-512.54146991,0.00015578,2]
[351709782,1738761039228,-1261.68,0.00015578,2]
[351709783,1738761039238,-404.72305298,0.00015578,2]
[351709785,1738761039322,-500.0,0.00015578,2]
[351709786,1738761039433,-520.2001162,0.00015578,2]
[351709787,1738761039442,-500.0,0.00015578,2]
[351709788,1738761039452,-500.0,0.00015578,2]
[351709789,1738761039461,-500.0,0.00015578,2]
[351709790,1738761039470,-500.0,0.00015578,2]
[351709791,1738761039480,-646.73,0.00015578,2]
[351709792,1738761039490,-500.0,0.00015578,2]
[351709793,1738761039499,-500.0,0.00015578,2]
[351709794,1738761039508,-160.70243076,0.00015578,2]
[351709795,1738761039525,-823.544997,0.00015578,2]
[351709796,1738761039541,-1000.0,0.00015578,2]
[351709829,1738761039987,-341.33257224,0.00015578,2]
[351709831,1738761039997,-345.65222776,0.00015578,2]
[351709837,1738761040046,-179.57777224,0.00015578,2]
[351709839,1738761040057,-500.0,0.00015578,2]
[351709841,1738761040067,-579.23,0.00015578,2]
[351709843,1738761040076,-464.06602132,0.00015578,2]
[351710143,1738761042858,-614.69,0.00015479,2]
[351710144,1738761042869,-35.93397868,0.00015578,2]
[351710145,1738761042880,-500.0,0.00015578,2]
[351710146,1738761042889,-182.7792918,0.00015578,2]
[351710147,1738761042901,-317.2207082,0.00015578,2]
[351710148,1738761042911,-500.0,0.00015578,2]
[351710149,1738761042921,-1733.21,0.00015578,2]
[351710150,1738761042932,-500.0,0.00015578,2]
[351710151,1738761042942,-500.0,0.00015578,2]
[351710152,1738761042951,-500.0,0.00015578,2]
[351710153,1738761042961,-1624.08,0.00015578,2]
[351710154,1738761042972,-500.0,0.00015578,2]
[351710156,1738761042984,-500.0,0.00015578,2]
[351710158,1738761042994,-500.0,0.00015578,2]
[351710159,1738761043003,-2792.23,0.00015578,2]
[351710161,1738761043012,-500.0,0.00015578,2]
[351710163,1738761043022,-1373.47,0.00015578,2]
[351710165,1738761043031,-500.0,0.00015578,2]
[351710167,1738761043041,-500.0,0.00015578,2]
[351710169,1738761043050,-500.0,0.00015578,2]
[351710171,1738761043060,-451.46836209,0.00015578,2]
[351710173,1738761043071,-514.15351747,0.00015578,2]
[351710175,1738761043081,-500.0,0.00015578,2]
[351710177,1738761043091,-500.0,0.00015578,2]
[351710179,1738761043100,-500.0,0.00015578,2]
[351710181,1738761043110,-566.43,0.00015578,2]
[351710183,1738761043119,-500.0,0.00015578,2]
[351710185,1738761043129,-509.69894569,0.00015578,2]
[351710187,1738761043139,-500.0,0.00015578,2]
[351710189,1738761043148,-500.0,0.00015578,2]
[351710191,1738761043158,-500.0,0.00015578,2]
[351710193,1738761043167,-809.83,0.00015578,2]
[351710195,1738761043177,-1873.55,0.00015578,2]
[351710197,1738761043186,-500.0,0.00015578,2]
[351710199,1738761043195,-500.0,0.00015578,2]
[351710201,1738761043205,-566.5,0.00015578,2]
[351710203,1738761043214,-1007.03,0.00015578,2]
[351710205,1738761043224,-500.0,0.00015578,2]
[351710207,1738761043233,-500.0,0.00015578,2]
[351710209,1738761043242,-500.0,0.00015578,2]
[351710211,1738761043252,-519.7228156,0.00015578,2]
[351710213,1738761043261,-505.03528444,0.00015578,2]
[351710215,1738761043271,-500.0,0.00015578,2]
[351710217,1738761043280,-1295.27,0.00015578,2]
[351710219,1738761043289,-500.0,0.00015578,2]
[351710221,1738761043299,-422.4961715,0.00015578,2]
[351710223,1738761043311,-664.46664877,0.00015578,2]
[351710226,1738761043326,-1804.53717973,0.00015578,2]
[351710228,1738761043337,-500.0,0.00015578,2]
[351710230,1738761043346,-500.4793057,0.00015578,2]
[351710232,1738761043356,-155.23962071,0.00015578,2]
[351710234,1738761043366,-500.0,0.00015578,2]
[351710236,1738761043375,-1125.34,0.00015578,2]
[351710238,1738761043384,-500.0,0.00015578,2]
[351710240,1738761043393,-500.0,0.00015578,2]
[351710242,1738761043403,-500.0,0.00015578,2]
[351710244,1738761043412,-500.0,0.00015578,2]
[351710246,1738761043421,-500.0,0.00015578,2]
[351710248,1738761043431,-500.0,0.00015578,2]
[351710250,1738761043440,-500.32974585,0.00015578,2]
[351710252,1738761043449,-500.0,0.00015578,2]
[351710254,1738761043458,-500.0,0.00015578,2]
[351710256,1738761043467,-625.21,0.00015578,2]
[351710257,1738761043477,-500.0,0.00015578,2]
[351710259,1738761043486,-500.0,0.00015578,2]
[351710261,1738761043495,-500.0,0.00015578,2]
[351710263,1738761043505,-500.0,0.00015578,2]
[351710265,1738761043514,-898.92,0.00015578,2]
[351710267,1738761043524,-500.0,0.00015578,2]
[351710270,1738761043533,-500.0,0.00015578,2]
[351710271,1738761043543,-500.0,0.00015578,2]
[351710273,1738761043552,-500.0,0.00015578,2]
[351710275,1738761043562,-735.14,0.00015578,2]
[351710277,1738761043571,-500.0,0.00015578,2]
[351710279,1738761043581,-500.0,0.00015578,2]
[351710281,1738761043590,-832.92,0.00015578,2]
[351710283,1738761043599,-683.22,0.00015578,2]
[351710285,1738761043609,-500.0,0.00015578,2]
[351710287,1738761043618,-886.68,0.00015578,2]
[351710289,1738761043627,-500.0,0.00015578,2]
[351710291,1738761043636,-500.0,0.00015578,2]
[351710293,1738761043646,-500.0,0.00015578,2]
[351710295,1738761043655,-3502.52,0.00015578,2]
[351710297,1738761043665,-500.0,0.00015578,2]
[351710299,1738761043674,-500.0,0.00015578,2]
[351710301,1738761043683,-500.0,0.00015578,2]
[351710303,1738761043693,-500.0,0.00015578,2]
[351710320,1738761043848,-500.0,0.00015578,2]
[351710322,1738761043858,-500.0,0.00015578,2]
[351710324,1738761043868,-499.4,0.00015578,2]
[351710326,1738761043878,-502.92,0.00015578,2]
[351710328,1738761043888,-10786.37,0.00015578,2]
[351710330,1738761043897,-604.9695143,0.00015578,2]
[351710332,1738761043907,-500.0,0.00015578,2]
[351710334,1738761043917,-500.0,0.00015578,2]
[351710336,1738761043926,-500.0,0.00015578,2]
[351710338,1738761043935,-508.6,0.00015578,2]
[351710340,1738761043944,-5156.55,0.00015578,2]
[351710342,1738761043954,-500.0,0.00015578,2]
[351710344,1738761043963,-500.0,0.00015578,2]
[351710346,1738761043975,-898.88,0.00015578,2]
[351710348,1738761043985,-500.0,0.00015578,2]
[351710350,1738761043994,-4451.58,0.00015578,2]
[351710352,1738761044003,-3881.7,0.00015578,2]
[351710354,1738761044012,-500.0,0.00015578,2]
[351710356,1738761044022,-500.0,0.00015578,2]
[351710358,1738761044032,-892.03,0.00015578,2]
[351710360,1738761044043,-500.0,0.00015578,2]
[351710362,1738761044053,-500.0,0.00015578,2]
[351710364,1738761044063,-3203.91,0.00015578,2]
[351710366,1738761044073,-500.0,0.00015578,2]
[351710368,1738761044082,-500.0,0.00015578,2]
[351710370,1738761044092,-426.99459517,0.00015578,2]
[351710372,1738761044102,-4492.35,0.00015578,2]
[351710373,1738761044111,-500.0,0.00015578,2]
[351710375,1738761044121,-500.0,0.00015578,2]
[351710377,1738761044131,-194.64290735,0.00015578,2]
[351710380,1738761044142,-500.0,0.00015578,2]
[351710381,1738761044151,-500.0,0.00015578,2]
[351710383,1738761044161,-500.0,0.00015578,2]
[351710385,1738761044171,-500.0,0.00015578,2]
[351710387,1738761044181,-714.0,0.00015578,2]
[351710390,1738761044191,-500.0,0.00015578,2]
[351710391,1738761044200,-1521.81,0.00015578,2]
[351710394,1738761044210,-500.0,0.00015578,2]
[351710396,1738761044220,-502.40915046,0.00015578,2]
[351710397,1738761044230,-1049.62,0.00015578,2]
[351710400,1738761044240,-715.84,0.00015578,2]
[351710402,1738761044250,-500.0,0.00015578,2]
[351710403,1738761044260,-500.0,0.00015578,2]
[351710405,1738761044270,-553.29,0.00015578,2]
[351710407,1738761044279,-690.36,0.00015578,2]
[351710409,1738761044288,-1517.01,0.00015578,2]
[351710411,1738761044298,-500.0,0.00015578,2]
[351710413,1738761044307,-500.0,0.00015578,2]
[351710416,1738761044317,-8798.38,0.00015578,2]
[351710418,1738761044327,-500.0,0.00015578,2]
[351710420,1738761044337,-500.0,0.00015578,2]
[351710422,1738761044346,-649.54,0.00015578,2]
[351710423,1738761044355,-1706.82,0.00015578,2]
[351710425,1738761044365,-557.93059378,0.00015578,2]
[351710427,1738761044374,-500.0,0.00015578,2]
[351710429,1738761044384,-707.08,0.00015578,2]
[351710431,1738761044394,-500.0,0.00015578,2]
[351710433,1738761044403,-500.0,0.00015578,2]
[351710435,1738761044412,-500.0,0.00015578,2]
[351710437,1738761044422,-3317.91,0.00015578,2]
[351710439,1738761044431,-1629.67,0.00015578,2]
[351710441,1738761044441,-500.0,0.00015578,2]
[351710443,1738761044450,-500.0,0.00015578,2]
[351710445,1738761044460,-500.0,0.00015578,2]
[351710447,1738761044470,-500.0,0.00015578,2]
[351710449,1738761044480,-1772.59,0.00015578,2]
[351710451,1738761044490,-1909.89,0.00015578,2]
[351710453,1738761044500,-717.2,0.00015578,2]